fUSD/lending_fUSD_20250515
["ID","MTS","AMOUNT","RATE_DAILY","PERIOD"]
[361211993,1747345315685,-166.59042292,0.0001089,2]
[361211994,1747345351969,160.55,0.00021945,30]
[361211996,1747345404297,-166.59042292,0.00010408,2]
[361211997,1747345447717,-83.40957708,0.00010408,2]
[361211998,1747345447742,-83.18084584,0.00010449,2]
[361211999,1747345506293,150.0,9.888e-05,2]
[361212000,1747345506416,150.0,9.888e-05,2]
[361212001,1747345506494,161.50795801,9.888e-05,2]
[361212002,1747345512920,246.50351891,9.888e-05,2]
[361212003,1747345512997,242.03870972,9.888e-05,2]
[361212004,1747345513078,150.03740194,9.888e-05,2]
[361212005,1747345513179,150.0,9.888e-05,2]
[361212006,1747345514493,193.42282137,9.888e-05,2]
[361212008,1747345581358,-327.13,0.0001027,2]
[361212009,1747345585494,-345.0511175,0.0001027,2]
[361212010,1747345588170,-210.80957351,0.0001027,2]
[361212011,1747345589567,-117.00930899,0.0001027,2]
[361212012,1747345625584,-325.9720955,0.00010263,2]
[361212013,1747345628686,-251.98288294,0.00010263,2]
[361212014,1747345631407,-200.0,0.00010263,2]
[361212015,1747345634077,-180.2516955,0.00010263,2]
[361212016,1747345636213,-309.38275032,0.00010263,2]
[361212017,1747345638580,-280.54724968,0.00010263,2]
[361212018,1747345640660,-217.69796335,0.00010263,2]
[361212019,1747345643291,-192.37203665,0.00010263,2]
[361212067,1747345832291,-10491.2953151,0.00010263,2]
[361212068,1747345832303,-5043.40180296,0.00010263,2]
[361212069,1747345832352,-4436.06303229,0.00010263,2]
[361212070,1747345832364,-1971.03317571,0.00010263,2]
[361212071,1747345832373,-75.42915416,0.00010449,2]
[361212072,1747345832382,-145.29193413,0.000108,2]
[361212073,1747345832411,-2354.70806587,0.000108,2]
[361212074,1747345832421,-239.96,0.0001089,2]
[361212075,1747345832430,-239.96,0.0001089,2]
[361212076,1747345832439,-239.96,0.0001089,2]
[361212077,1747345832453,-239.96,0.0001089,2]
[361212078,1747345832463,-207.4,0.00010893,2]
[361212079,1747345832473,-500.0,0.00010899,2]
[361212080,1747345832482,-523.24862495,0.00010899,2]
[361212081,1747345832491,-500.0,0.00010899,2]
[361212082,1747345832501,-888.39158618,0.000109,2]
[361212083,1747345832514,-1047.85311258,0.000109,2]
[361212084,1747345832529,-567.02785561,0.000109,2]
[361212085,1747345832541,-1419.41840479,0.000109,2]
[361212086,1747345832552,-896.14601445,0.000109,2]
[361212087,1747345832576,-513.74121267,0.000109,2]
[361212088,1747345832587,-398.05286501,0.000109,2]
[361212645,1747345838566,-518.43555,0.000108,2]
[361212647,1747345838578,-382.46845,0.000108,2]
[361212649,1747345838587,-159.97,0.0001089,2]
[361212651,1747345838597,-159.97,0.0001089,2]
[361212653,1747345838606,-159.97,0.0001089,2]
[361212655,1747345838615,-159.97,0.0001089,2]
[361212657,1747345838625,-7404.83516092,0.000109,2]
[361212900,1747345840967,-1598.57692728,0.000109,2]
[361212902,1747345840979,-2089.087,0.000109,2]
[361212906,1747345841002,-322.54179362,0.000109,2]
[361212936,1747345841279,-183.92110831,0.000109,2]
[361212940,1747345841310,-4175.6,0.000109,2]
[361212943,1747345841333,-352.54022148,0.000109,2]
[361212946,1747345841344,-1031.1,0.000109,2]
[361213156,1747345843474,-5395.79270692,0.000109,2]
[361213158,1747345843486,-4078.41175,0.000109,2]
[361213164,1747345843535,-3556.32828018,0.000109,2]
[361213166,1747345843545,-15738.87171982,0.000109,2]
[361213169,1747345843561,-3602.0,0.000109,2]
[361213435,1747345846238,-5157.5,0.000109,2]
[361213457,1747345846435,-8292.93785819,0.000109,2]
[361213486,1747345846718,-1178.600015,0.000109,2]
[361213654,1747345906612,150.0,0.00011018,7]
[361213658,1747346001827,1446.99,8.437e-05,2]
[361213675,1747346608498,160.55,0.00021945,30]
[361213676,1747346617733,-246.89,0.0001,2]
[361213677,1747346619293,-203.11,0.0001,2]
[361213679,1747346693380,-75000.0,0.00015,7]
[361213690,1747347000252,150.0,0.00010874,7]
[361213691,1747347031460,-574.42573208,0.00010701,2]
[361213692,1747347031522,-872.56426792,0.00010701,2]
[361213693,1747347031532,-200.0,0.0001075,2]
[361213694,1747347031541,-1895.10384784,0.000108,2]
[361213695,1747347031552,-1885.39795579,0.000108,2]
[361213696,1747347031564,-18.76159637,0.000108,2]
[361213697,1747347031573,-200.0,0.0001082,2]
[361213698,1747347031582,-2565.0434969,0.00010877,2]
[361213699,1747347031647,-3145.04349243,0.00010877,2]
[361213700,1747347031659,-2553.33000917,0.00010877,2]
[361213701,1747347031701,-4474.8697187,0.00010877,2]
[361213702,1747347031713,-388.00883751,0.00010877,2]
[361213703,1747347031725,-3223.40151439,0.00010877,2]
[361213704,1747347031737,-3132.07812,0.00010877,2]
[361213705,1747347031749,-2002.65164984,0.00010877,2]
[361213706,1747347031761,-2415.57316106,0.00010877,2]
[361213707,1747347031770,-593.35,0.00010897,2]
[361213708,1747347031780,-500.0,0.00010899,2]
[361213710,1747347031789,-500.0,0.00010899,2]
[361213712,1747347031798,-500.0,0.00010899,2]
[361213714,1747347031808,-500.0,0.00010899,2]
[361213716,1747347031818,-500.0,0.00010899,2]
[361213718,1747347031827,-521.54886416,0.00010899,2]
[361213720,1747347031838,-500.0,0.00010899,2]
[361213722,1747347031848,-500.0,0.00010899,2]
[361213724,1747347031857,-500.0,0.00010899,2]
[361213725,1747347031867,-500.0,0.00010899,2]
[361213726,1747347031876,-500.0,0.00010899,2]
[361213727,1747347031886,-500.0,0.00010899,2]
[361213728,1747347031895,-500.0,0.00010899,2]
[361213730,1747347031904,-500.0,0.00010899,2]
[361213732,1747347031913,-500.0,0.00010899,2]
[361213734,1747347031923,-550.28068303,0.00010899,2]
[361213736,1747347031933,-500.0,0.00010899,2]
[361213738,1747347031942,-500.0,0.00010899,2]
[361213740,1747347031951,-500.0,0.00010899,2]
[361213742,1747347031960,-181.45898956,0.00010899,2]
[361213744,1747347031970,-500.0,0.00010899,2]
[361213745,1747347031980,-500.0,0.00010899,2]
[361213748,1747347031990,-500.0,0.00010899,2]
[361213749,1747347031999,-269.39397774,0.00010899,2]
[361213750,1747347032008,-500.0,0.00010899,2]
[361213751,1747347032018,-500.0,0.00010899,2]
[361213752,1747347032030,-500.0,0.00010899,2]
[361213753,1747347032040,-500.0,0.00010899,2]
[361213754,1747347032049,-500.0,0.00010899,2]
[361213755,1747347032060,-500.0,0.00010899,2]
[361213756,1747347032069,-500.0,0.00010899,2]
[361213757,1747347032079,-500.0,0.00010899,2]
[361213758,1747347032089,-500.0,0.00010899,2]
[361213759,1747347032100,-500.0,0.00010899,2]
[361213760,1747347032110,-500.0,0.00010899,2]
[361213761,1747347032123,-557.46363775,0.00010899,2]
[361213762,1747347032140,-500.0,0.00010899,2]
[361213763,1747347032150,-500.0,0.00010899,2]
[361213764,1747347032159,-500.0,0.00010899,2]
[361213765,1747347032168,-500.0,0.00010899,2]
[361213766,1747347032177,-500.0,0.00010899,2]
[361213767,1747347032187,-500.0,0.00010899,2]
[361213768,1747347032196,-500.0,0.00010899,2]
[361213769,1747347032205,-500.0,0.00010899,2]
[361213770,1747347032214,-500.0,0.00010899,2]
[361213771,1747347032223,-514.36590944,0.00010899,2]
[361213772,1747347032232,-5000.0,0.000109,2]
[361213773,1747347032241,-88709.03861166,0.000109,2]
[361213774,1747347032253,-48451.46790428,0.000109,2]
[361213775,1747347032317,-159.97,0.0001089,2]
[361213776,1747347032326,-438.23233049,0.000109,2]
[361213777,1747347032337,-7616.91171774,0.000109,2]
[361213778,1747347032427,-3088.16183583,0.000109,2]
[361213779,1747347032436,-295.08744053,0.000109,2]
[361213780,1747347032446,-261.43230368,0.000109,2]
[361213781,1747347032455,-607.2655,0.000109,2]
[361213782,1747347032465,-193.51976381,0.000109,2]
[361213783,1747347032474,-1000.0,0.000109,2]
[361213784,1747347032483,-2500.0,0.000109,2]
[361213785,1747347032492,-450.37395793,0.000109,2]
[361213786,1747347032501,-765.69,0.00010903,2]
[361213787,1747347032510,-1000.0,0.00010905,2]
[361213788,1747347032520,-250.0,0.00010917,2]
[361213789,1747347032529,-160.07198194,0.00010933,2]
[361213790,1747347032538,-150.0,0.0001096,2]
[361213791,1747347032548,-626.29688712,0.00010973,2]
[361213792,1747347032558,-500.0,0.00010973,2]
[361213793,1747347032568,-500.0,0.00010973,2]
[361213794,1747347032578,-500.0,0.00010973,2]
[361213795,1747347032588,-330.62981563,0.00010973,2]
[361213796,1747347032597,-500.0,0.00010973,2]
[361213797,1747347032607,-500.0,0.00010973,2]
[361213798,1747347032617,-3056.27471942,0.0001099,2]
[361213799,1747347032626,-340.04480696,0.0001099,2]
[361213800,1747347032636,-163.5065255,0.00010999,2]
[361213801,1747347032645,-167.52791361,0.00010999,2]
[361213802,1747347032655,-153.31770071,0.00010999,2]
[361213803,1747347032664,-0.13432903,0.00010999,2]
[361213804,1747347032676,-149.86567097,0.00010999,2]
[361213805,1747347032686,-933.68802903,0.00011,2]
[361213806,1747347032698,-766.86963727,0.00011,2]
[361213807,1747347037631,-159.97,0.0001099,2]
[361213808,1747347037640,-91.80998854,0.0001099,2]
[361213809,1747347037651,-68.16001146,0.0001099,2]
[361213810,1747347037661,-159.97,0.0001099,2]
[361213811,1747347037671,-159.97,0.0001099,2]
[361213812,1747347037680,-3690.6671765,0.00011,2]
[361213834,1747347040036,-243930.55860192,0.00011,2]
[361213835,1747347040048,-971.3366214,0.00011,2]
[361213836,1747347040060,-1551.862924,0.00011,2]
[361213837,1747347040078,-21302.07243557,0.00011,2]
[361213845,1747347042570,-14351.0,0.00011,2]
[361213846,1747347042582,-1189.34778732,0.00011,2]
[361213847,1747347042684,-2223.7676,0.00011,2]
[361213848,1747347042695,-268.61,0.00011,2]
[361213849,1747347042853,-196651.11929825,0.00011,2]
[361213850,1747347042915,-858.6849167,0.00011,2]
[361213858,1747347045503,-107840.33512201,0.00011,2]
[361213859,1747347045553,-500.0,0.00011,2]
[361213860,1747347045748,-1245.69,0.00011,2]
[361213861,1747347045910,-33490.21234996,0.00011,2]
[361213862,1747347045921,-466.05485796,0.00011,2]
[361213863,1747347045932,-428.89054298,0.00011,2]
[361213864,1747347045948,-771.55623,0.00011,2]
[361213865,1747347045960,-714.413271,0.00011,2]
[361214307,1747347050777,1302.29,9.286e-05,2]
[361214417,1747347197472,150.0,0.00012598,120]
[361214418,1747347204415,150.0,0.00012698,120]
[361214419,1747347950870,-250.0,0.0001,2]
[361214421,1747348099787,1354.49,9.079e-05,2]
[361214426,1747348154402,150.0,0.00010182,7]
[361214461,1747348231788,-200.0,0.0001,2]
[361214462,1747348231798,-250.0,0.00010364,2]
[361214463,1747348231808,-1200.0,0.00010799,2]
[361214464,1747348231818,-300.0,0.00010799,2]
[361214465,1747348231827,-1617.7405,0.000108,2]
[361214466,1747348231837,-226.771,0.000108,2]
[361214467,1747348231846,-2500.0,0.000108,2]
[361214468,1747348231856,-1000.0,0.00010873,2]
[361214469,1747348231865,-200.0,0.00010879,2]
[361214470,1747348231875,-200.0,0.00010886,2]
[361214471,1747348231885,-8657.34955722,0.0001089,2]
[361214472,1747348231894,-204.206,0.00010899,2]
[361214473,1747348231905,-3919.201,0.00010899,2]
[361214474,1747348231918,-500.0,0.00010899,2]
[361214475,1747348231929,-500.0,0.00010899,2]
[361214476,1747348231939,-500.0,0.00010899,2]
[361214477,1747348231948,-500.0,0.00010899,2]
[361214478,1747348231958,-500.0,0.00010899,2]
[361214479,1747348231968,-500.0,0.00010899,2]
[361214480,1747348231977,-500.0,0.00010899,2]
[361214481,1747348231987,-500.0,0.00010899,2]
[361214482,1747348231996,-500.0,0.00010899,2]
[361214483,1747348232005,-500.0,0.00010899,2]
[361214484,1747348232015,-500.0,0.00010899,2]
[361214485,1747348232024,-424.56872452,0.00010899,2]
[361214486,1747348232035,-500.0,0.00010899,2]
[361214487,1747348232044,-500.0,0.00010899,2]
[361214488,1747348232056,-500.0,0.00010899,2]
[361214489,1747348232065,-500.0,0.00010899,2]
[361214490,1747348232075,-500.0,0.00010899,2]
[361214491,1747348232085,-500.0,0.00010899,2]
[361214492,1747348232096,-500.0,0.00010899,2]
[361214493,1747348232106,-500.0,0.00010899,2]
[361214494,1747348232116,-500.0,0.00010899,2]
[361214495,1747348232125,-500.0,0.00010899,2]
[361214496,1747348232136,-500.0,0.00010899,2]
[361214497,1747348232146,-500.0,0.00010899,2]
[361214498,1747348232156,-282.74261964,0.00010899,2]
[361214499,1747348232166,-115910.8636042,0.000109,2]
[361214500,1747348232186,-739.489561,0.000109,2]
[361214501,1747348232198,-1555.64999961,0.000109,2]
[361214502,1747348236553,-1050.0,0.000109,2]
[361214503,1747348236569,-1578.04109096,0.000109,2]
[361214504,1747348236656,-4566.76475753,0.000109,2]
[361214505,1747348236670,-2554.49999994,0.000109,2]
[361214506,1747348236690,-28340.67629403,0.000109,2]
[361214507,1747348236725,-5020.70673286,0.000109,2]
[361214586,1747348237666,-1782.044,0.000109,2]
[361214596,1747348237748,-2198.98756785,0.000109,2]
[361214599,1747348237770,-9018.05379202,0.000109,2]
[361214602,1747348237785,-500.0,0.000109,2]
[361214604,1747348237801,-5000.0,0.000109,2]
[361214607,1747348237815,-421.17502145,0.000109,2]
[361214609,1747348237830,-153.97656905,0.000109,2]
[361214612,1747348237845,-200.0,0.00010929,2]
[361214615,1747348237860,-500.0,0.00010973,2]
[361214616,1747348237875,-500.0,0.00010973,2]
[361214617,1747348237889,-626.93593664,0.00010973,2]
[361214618,1747348237904,-500.0,0.00010973,2]
[361214619,1747348237919,-500.0,0.00010973,2]
[361214620,1747348237934,-500.0,0.00010973,2]
[361214621,1747348237948,-500.0,0.00010973,2]
[361214622,1747348237964,-500.0,0.00010986,2]
[361214623,1747348237979,-1455.23426223,0.00010997,2]
[361214624,1747348238091,-515.55170183,0.00010997,2]
[361214625,1747348238110,-14639.34743737,0.00010997,2]
[361214626,1747348238226,-500.0,0.00010997,2]
[361214627,1747348239804,-1698.0,0.000109,2]
[361214628,1747348239815,-408.49156741,0.000109,2]
[361214629,1747348239827,-1556.55,0.000109,2]
[361214630,1747348239868,-1336.95843259,0.000109,2]
[361214631,1747348239877,-226.69653797,0.00010989,2]
[361214632,1747348239886,-1530.72268881,0.00010997,2]
[361214633,1747348239897,-2690.89999997,0.00010997,2]
[361214634,1747348239909,-1460.72000014,0.00010997,2]
[361214635,1747348240138,-35.99240448,0.00010997,2]
[361214636,1747348240160,-1071.53150517,0.00010997,2]
[361214637,1747348240170,-449.40408353,0.00010997,2]
[361214651,1747348243058,-316.0555,0.000108,2]
[361214652,1747348243069,-965.47591647,0.00010997,2]
[361214653,1747348243080,-173.32339543,0.00010999,2]
[361214654,1747348243089,-316.7277197,0.00010999,2]
[361214656,1747348245777,-4362.29840756,0.00010999,2]
[361214657,1747348245931,-7739.991035,0.00010999,2]
[361214658,1747348262494,-341.0478713,0.0001089,2]
[361214659,1747348322819,-395.52393565,0.00010167,2]
[361214660,1747348329532,-124.23606435,0.00010167,2]
[361214662,1747348660871,-250.0,0.00010064,2]
[361214663,1747348660893,-19.3967046,0.00010064,2]
[361214664,1747348663366,-179.56307149,0.00010064,2]
[361214665,1747348665267,-3.60022391,0.00010064,2]
[361214666,1747348665290,-241.81487844,0.00010079,2]
[361214667,1747348668110,-245.41510235,0.00010079,2]
[361214668,1747348670234,-245.41510235,0.00010079,2]
[361214669,1747348673047,-245.41510235,0.00010079,2]
[361214670,1747348699838,-245.41510235,0.00010079,2]
[361214671,1747348718348,150.0,0.00013,5]
[361214672,1747348726549,-180.7854157,0.00010079,2]
[361214673,1747348727965,-210.1536223,0.00010079,2]
[361214674,1747348754535,-215.95880197,0.00010079,2]
[361214675,1747348783183,-215.95880197,0.00010079,2]
[361214676,1747348818710,-172.04,9.989e-05,2]
[361214677,1747348820563,-221.2922797,9.989e-05,2]
[361214678,1747348823119,-370.47961566,9.989e-05,2]
[361214679,1747348825700,-236.18810464,9.989e-05,2]
[361214680,1747348851243,-172.04,0.00010079,2]
[361214681,1747348872031,5561.0,0.000129,5]
[361214682,1747348878765,-172.04,0.00010079,2]
[361214683,1747348903641,5561.0,0.000129,5]
[361214684,1747348923797,-166.59042292,0.00010079,2]
[361214686,1747348935276,5561.0,0.000128,5]
[361214687,1747348967454,5561.0,0.000128,5]
[361214688,1747348999748,5561.0,0.000126,5]
[361214689,1747349013700,-165.16460065,0.00010079,2]
[361214690,1747349033824,5561.0,0.000126,5]
[361214691,1747349059740,-166.59042292,0.00010079,2]
[361214692,1747349065635,5561.0,0.000125,5]
[361214693,1747349097459,5561.0,0.000125,5]
[361214694,1747349110257,150.0,9.888e-05,2]
[361214695,1747349110558,150.0,9.888e-05,2]
[361214696,1747349110858,150.0,9.888e-05,2]
[361214697,1747349116906,150.0,9.888e-05,2]
[361214698,1747349117092,150.0,9.888e-05,2]
[361214699,1747349117261,150.0,9.888e-05,2]
[361214700,1747349119332,150.0,9.888e-05,2]
[361214701,1747349129630,5561.0,0.000124,5]
[361214702,1747349161213,4774.18132663,0.000124,5]
[361214703,1747349161242,786.81867337,0.000124,5]
[361214704,1747349192912,5561.0,0.000123,5]
[361214705,1747349211857,150.0,9.904e-05,7]
[361214706,1747349225325,5561.0,0.000121,5]
[361214709,1747349244512,748.34,9.904e-05,2]
[361214710,1747349245399,-327.13,9.95e-05,2]
[361214711,1747349246827,-345.0511175,9.95e-05,2]
[361214712,1747349249135,-210.80957351,9.95e-05,2]
[361214713,1747349250973,-317.00930899,9.95e-05,2]
[361214714,1747349253456,-180.2516955,9.95e-05,2]
[361214715,1747349255064,-309.38275032,9.95e-05,2]
[361214716,1747349258447,-280.54724968,9.95e-05,2]
[361214717,1747349258515,5561.0,0.000121,5]
[361214718,1747349261848,-217.69796335,9.95e-05,2]
[361214719,1747349263986,-192.37203665,9.95e-05,2]
[361214720,1747349266099,-325.9720955,9.95e-05,2]
[361214721,1747349267669,-251.98288294,9.95e-05,2]
[361214722,1747349271404,-221.73714933,9.95e-05,2]
[361214723,1747349274192,-253.45589505,9.95e-05,2]
[361214724,1747349275657,-153.94,9.95e-05,2]
[361214725,1747349278198,-318.62013448,9.95e-05,2]
[361214726,1747349281409,-106.3201472,9.95e-05,2]
[361214727,1747349287176,-180.13597082,9.94e-05,2]
[361214728,1747349290859,5561.0,0.00012,5]
[361214729,1747349291928,-214.44856175,9.94e-05,2]
[361214730,1747349295662,-178.84555361,9.94e-05,2]
[361214731,1747349299220,-445.29682209,9.94e-05,2]
[361214732,1747349301674,-164.10813852,9.94e-05,2]
[361214733,1747349303149,-279.50503939,9.94e-05,2]
[361214734,1747349322895,800.874994,9.89e-05,2]
[361214735,1747349325209,5561.0,0.00012,5]
[361214740,1747349355131,1383.04,8.219e-05,2]
[361214742,1747349357562,5561.0,0.000119,5]
[361214743,1747349358526,-200.0,9.918e-05,2]
[361214744,1747349364960,-10000.0,9.94e-05,2]
[361214745,1747349366116,-10000.0,9.94e-05,2]
[361214746,1747349375265,-2437.65991382,9.94e-05,2]
[361214747,1747349389301,5561.0,0.000119,5]
[361214750,1747349422186,5561.0,0.000118,5]
[361214755,1747349431895,-572.68262373,0.00010079,2]
[361214756,1747349431906,-250.0,0.0001009,2]
[361214757,1747349431916,-250.0,0.00010156,2]
[361214758,1747349431926,-158.78,0.00010167,3]
[361214759,1747349431935,-200.0,0.000102,2]
[361214760,1747349431945,-152.81,0.00010233,2]
[361214761,1747349431954,-150.0,0.00010254,2]
[361214762,1747349431964,-914.35,0.000103,2]
[361214763,1747349431973,-150.0,0.00010437,2]
[361214764,1747349431983,-150.0,0.00010437,2]
[361214765,1747349431992,-1383.04,0.00010471,2]
[361214766,1747349432002,-216.361555,0.00010547,2]
[361214767,1747349432012,-300.0,0.00010599,2]
[361214768,1747349432022,-2506.01441521,0.000106,2]
[361214769,1747349432031,-150.18,0.000106,2]
[361214770,1747349432040,-500.0,0.00010603,2]
[361214771,1747349432050,-168.0,0.00010614,2]
[361214772,1747349432059,-223.0,0.00010616,2]
[361214773,1747349432069,-150.0,0.0001062,2]
[361214774,1747349432078,-1200.0,0.00010699,2]
[361214775,1747349432087,-928.32,0.000107,2]
[361214776,1747349432096,-891.0,0.00010713,2]
[361214777,1747349432105,-300.0,0.00010788,2]
[361214778,1747349432115,-200.0,0.00010845,2]
[361214779,1747349432124,-200.0,0.00010875,2]
[361214780,1747349432133,-5504.476,0.00010889,2]
[361214781,1747349432142,-303.797,0.00010889,2]
[361214782,1747349432151,-581.34168841,0.00010898,2]
[361214783,1747349432160,-1525.6898,0.00010899,2]
[361214784,1747349432169,-150.85022911,0.00010899,2]
[361214785,1747349432179,-192.34921943,0.00010899,2]
[361214786,1747349432187,-27247.49323293,0.00010899,2]
[361214787,1747349432199,-305.32,0.00010899,2]
[361214788,1747349432214,-1733.01266707,0.00010899,2]
[361214789,1747349432223,-1000.0,0.00010899,2]
[361214790,1747349432232,-612.703,0.000109,2]
[361214791,1747349432241,-578.84947171,0.000109,2]
[361214792,1747349432252,-527.12435326,0.000109,2]
[361214793,1747349432279,-3894.02617503,0.000109,2]
[361214795,1747349432288,-302.32184481,0.000109,2]
[361214796,1747349432297,-1000.29068573,0.000109,2]
[361214797,1747349432306,-409.90686202,0.000109,2]
[361214798,1747349432315,-548.31137361,0.00010947,2]
[361214800,1747349432326,-189.68862639,0.00010947,2]
[361214802,1747349432339,-500.0,0.00010973,2]
[361214804,1747349432347,-212.43363649,0.00010986,2]
[361214806,1747349432356,-150.0,0.00010986,2]
[361214808,1747349432365,-150.0,0.00010986,2]
[361214810,1747349432374,-150.0,0.00010986,2]
[361214811,1747349432384,-350.0,0.00010988,2]
[361214812,1747349432393,-151.13102532,0.0001099,2]
[361214813,1747349432402,-174.5067118,0.00010997,2]
[361214814,1747349432433,-477.66514476,0.00010997,2]
[361214815,1747349432445,-3228.53234922,0.00010997,2]
[361214816,1747349432455,-181.83967602,0.00010998,2]
[361214817,1747349432465,-500.0,0.00010998,2]
[361214818,1747349432474,-500.0,0.00010998,2]
[361214819,1747349432484,-213.84096939,0.00010998,2]
[361214821,1747349432493,-2092.31504537,0.00010999,2]
[361214823,1747349437819,-170.68,0.0001099,2]
[361214824,1747349437829,-170.68,0.0001099,2]
[361214825,1747349437838,-170.68,0.0001099,2]
[361214826,1747349437847,-170.68,0.0001099,2]
[361214827,1747349437857,-29082.81316956,0.00010999,2]
[361214828,1747349437870,-5522.49267624,0.00010999,2]
[361214829,1747349437907,-1451.03997587,0.00010999,2]
[361214830,1747349438007,-20856.03658111,0.00010999,2]
[361214831,1747349438068,-897.06804243,0.00010999,2]
[361214834,1747349440136,-11272.12292328,0.00010999,2]
[361214835,1747349440145,-172.55198345,0.00010999,2]
[361214836,1747349440153,-160.63415763,0.00010999,2]
[361214837,1747349440163,-504.0,0.00010999,2]
[361214838,1747349440173,-452.63903591,0.00010999,2]
[361214839,1747349440183,-13022.38513453,0.00011,2]
[361214846,1747349440619,-64.13417894,0.00011,2]
[361214850,1747349440647,-144055.78171824,0.00011,2]
[361215055,1747349445972,-3900.65469987,0.00011,2]
[361215056,1747349445984,-3690.48875578,0.00011,2]
[361215057,1747349446200,-1186.768785,0.00011,2]
[361215813,1747349456158,5561.0,0.000118,5]
[361215814,1747349488716,5561.0,0.000116,5]
[361215815,1747349520499,5561.0,0.000116,5]
[361215816,1747349552076,5561.0,0.000115,5]
[361215817,1747349583986,5561.0,0.000114,5]
[361215818,1747349616832,5561.0,0.000114,5]
[361215819,1747349649231,5561.0,0.000113,5]
[361215820,1747349714017,5561.0,0.000111,5]
[361215821,1747349745581,5561.0,0.000111,5]
[361215822,1747349777809,4526.18132663,0.00011,5]
[361215823,1747349777835,1034.81867337,0.00011,5]
[361215824,1747349810695,5561.0,0.00011,5]
[361215825,1747349844609,5561.0,0.000109,5]
[361215826,1747349876892,5561.0,0.000109,5]
[361215829,1747349909095,5561.0,0.000108,5]
[361215830,1747349940853,5561.0,0.000108,5]
[361215831,1747349974206,5561.0,0.000106,5]
[361215833,1747350007227,5561.0,0.000106,5]
[361215834,1747350038596,5561.0,0.000106,5]
[361215835,1747350069997,5561.0,0.000106,5]
[361215836,1747350084382,2000.0,0.00027397,120]
[361215837,1747350101449,5561.0,0.000106,5]
[361215838,1747350156034,2000.0,0.00027397,120]
[361215839,1747350166007,2065.395911,0.00027397,120]
[361215840,1747350290321,1200.0,0.00027,120]
[361215841,1747350313225,150.0,9.888e-05,2]
[361215842,1747350313820,150.0,9.888e-05,2]
[361215843,1747350319817,150.0,9.888e-05,2]
[361215844,1747350319870,150.0,9.888e-05,2]
[361215845,1747350319957,150.0,9.888e-05,2]
[361215846,1747350320125,150.0,9.888e-05,2]
[361215847,1747350324408,2196.0,0.00027,120]
[361215848,1747350325339,150.0,9.888e-05,2]
[361215849,1747350366929,1322.53,8.219e-05,2]
[361215850,1747350392612,150.0,9.836e-05,7]
[361215868,1747350478100,750.24,9.776e-05,2]
[361215869,1747350537369,238.195006,9.775e-05,2]
[361215870,1747350537390,194.724994,9.775e-05,2]
[361215873,1747350581832,856.84,9.792e-05,2]
[361215874,1747350592072,150.0,9.782e-05,2]
[361215875,1747350592112,150.0,9.84e-05,2]
[361215876,1747350592152,150.0,9.372e-05,2]
[361215888,1747350632172,-250.0,0.0001,2]
[361215889,1747350632182,-450.0,0.0001,2]
[361215890,1747350632192,-2340.17,0.00010009,2]
[361215891,1747350632201,-1000.0,0.00010085,2]
[361215892,1747350632210,-1200.0,0.0001009,2]
[361215893,1747350632220,-300.0,0.00010091,2]
[361215894,1747350632231,-164.81,0.00010092,2]
[361215895,1747350632240,-2609.29,0.00010092,2]
[361215896,1747350632251,-2967.92,0.00010092,2]